bitfinex/quotes_SOLUSD_20230904
["timestamp","ask_amount","ask_price","bid_price","bid_amount"]
[1693810394264,20.0,19.779,19.757,31.70852]
[1693810394459,20.0,19.779,19.758,16.65254036]
[1693810394666,20.0,19.779,19.759,11.70733]
[1693810394865,20.0,19.779,19.76,4.94461036]
[1693810395273,20.0,19.779,19.761,11.70615]
[1693810395570,20.0,19.779,19.762,4.94461036]
[1693810395771,20.0,19.779,19.763,55.0]
[1693810395973,20.0,19.779,19.764,4.94461036]
[1693810396159,20.0,19.779,19.765,55.0]
[1693810401167,20.0,19.779,19.761,11.70615]
[1693810401362,55.0,19.778,19.762,3.57904841]
[1693810401671,20.0,19.777,19.762,3.57904841]
[1693810401872,55.0,19.776,19.76,4.27949606]
[1693810402373,20.0,19.777,19.76,4.27949606]
[1693810402559,25.57,19.78,19.76,4.27949606]
[1693810402560,20.0,19.779,19.76,4.27949606]
[1693810402762,55.0,19.778,19.76,59.27949606]
[1693810402962,20.0,19.777,19.76,59.27949606]
[1693810416901,20.0,19.777,19.76,98.78177223]
[1693810424107,25.61,19.77,19.76,4.27949606]
[1693810424410,75.0,19.769,19.753,40.80161942]
[1693810424599,75.0,19.769,19.75,14.9256825]
[1693810424799,25.61,19.76,19.751,4.94461036]
[1693810426000,25.61,19.76,19.753,4.94461036]
[1693810428004,25.63,19.77,19.753,4.94461036]
[1693810428199,128.15,19.78,19.754,66.7103]
[1693810428399,20.0,19.777,19.755,24.94461036]
[1693810428599,20.0,19.777,19.756,55.0]
[1693810428808,20.0,19.779,19.757,24.94461036]
[1693810429004,114.1599,19.779,19.758,55.0]
[1693810429205,114.1599,19.779,19.759,4.94461036]
[1693810429409,55.0,19.778,19.759,4.94461036]
[1693810429713,20.0,19.777,19.759,4.94461036]
[1693810429898,55.0,19.776,19.759,4.94461036]
[1693810440619,94.1599,19.779,19.759,4.94461036]
[1693810440918,20.0,19.778,19.761,4.94461036]
[1693810441217,20.0,19.778,19.763,4.94461036]
[1693810441419,20.0,19.778,19.764,55.0]
[1693810454011,25.6,19.78,19.765,25.42355817]
[1693810454214,25.6,19.79,19.766,75.0]
[1693810454524,25.6,19.78,19.767,66.7026]
[1693810454919,25.6,19.78,19.768,25.42355817]
[1693810455222,25.6,19.78,19.769,55.0]
[1693810455422,25.6,19.78,19.77,25.42355817]
[1693810455625,25.6,19.78,19.761,3.04764813]
[1693810455626,75.0,19.779,19.761,3.04764813]
[1693810455823,25.6,19.77,19.759,66.7026]
[1693810456123,25.6,19.77,19.76,4.94461036]
[1693810456323,169.5495,19.779,19.76,4.94461036]
[1693810456828,169.5495,19.779,19.761,55.0]
[1693810457023,169.5495,19.779,19.762,4.94461036]
[1693810457229,169.5495,19.779,19.763,55.0]
[1693810457429,169.5495,19.779,19.764,4.94461036]
[1693810458227,169.5495,19.779,19.763,55.0]
[1693810458426,169.5495,19.779,19.764,2.71406616]
[1693810460928,169.5495,19.779,19.763,55.0]
[1693810462316,169.5495,19.779,19.764,2.55653356]
[1693810462516,169.5495,19.779,19.763,55.0]
[1693810462720,169.5495,19.779,19.764,2.48425258]
[1693810463128,169.5495,19.779,19.763,55.0]
[1693810463431,169.5495,19.779,19.764,2.47586465]
[1693810463731,76.8,19.78,19.763,55.0]
[1693810463944,96.35,19.799,19.765,11.70378]
[1693810464228,96.35,19.799,19.766,105.36816853]
[1693810464229,25.6,19.79,19.766,105.36816853]
[1693810464436,401.4,19.798,19.766,105.36816853]
[1693810464733,401.4,19.798,19.767,11.7026]
[1693810465037,401.4,19.798,19.768,105.36816853]
[1693810465621,401.4,19.798,19.769,11.70141]
[1693810465622,128.0,19.79,19.769,11.70141]
[1693810465833,119.5865,19.789,19.77,59.94461036]
[1693810466928,55.0,19.788,19.77,59.94461036]
[1693810467334,20.0,19.787,19.77,59.94461036]
[1693810476735,20.0,19.788,19.77,59.94461036]
[1693810482648,25.6,19.78,19.77,4.94461036]
[1693810482845,20.0,19.779,19.757,24.94461036]
[1693810483044,20.0,19.779,19.758,11.70793]
[1693810483245,94.7219,19.778,19.759,4.94461036]
[1693810483450,20.0,19.777,19.759,4.94461036]
[1693810483651,20.0,19.777,19.759,16.65194036]
[1693810483849,20.0,19.777,19.759,36.88671736]
[1693810484055,20.0,19.777,19.76,55.0]
[1693810484244,20.0,19.777,19.761,4.94461036]
[1693810484450,20.0,19.777,19.762,55.0]
[1693810484649,20.0,19.777,19.763,4.94461036]
[1693810484848,20.0,19.777,19.764,55.0]
[1693810485050,20.0,19.777,19.765,4.94461036]
[1693810485246,20.0,19.777,19.759,31.942107]
[1693810485441,25.6,19.77,19.76,4.94461036]
[1693810485642,25.6,19.77,19.752,4.94461036]
[1693810485946,20.0,19.769,19.751,30.36816836]
[1693810486143,20.0,19.769,19.751,45.63523967]
[1693810487957,20.0,19.769,19.753,4.94461036]
[1693810488160,20.0,19.769,19.755,4.94461036]
[1693810488346,20.0,19.769,19.754,55.0]
[1693810488347,20.0,19.769,19.753,4.94461036]
[1693810488546,20.0,19.769,19.757,4.94461036]
[1693810488759,20.0,19.769,19.753,4.94461036]
[1693810488950,20.0,19.769,19.755,4.94461036]
[1693810489145,20.0,19.769,19.757,4.94461036]
[1693810489351,20.0,19.769,19.755,4.94461036]
[1693810489547,20.0,19.769,19.757,4.94461036]
[1693810489745,20.0,19.769,19.755,4.94461036]
[1693810489951,25.6,19.77,19.757,4.94461036]
[1693810490449,22.66972263,19.776,19.757,4.94461036]
[1693810490657,91.4641,19.779,19.758,55.0]
[1693810490847,91.4641,19.779,19.759,4.94461036]
[1693810491047,91.4641,19.779,19.76,55.0]
[1693810491262,91.4641,19.779,19.761,4.94461036]
[1693810491557,91.4641,19.779,19.762,55.0]
[1693810491966,75.0,19.778,19.763,4.94461036]
[1693810493657,75.0,19.778,19.759,4.94461036]
[1693810493866,75.0,19.778,19.76,55.0]
[1693810494160,75.0,19.778,19.76,4.94461036]
[1693810494351,75.0,19.778,19.762,4.94461036]
[1693810496159,20.0,19.778,19.763,55.0]
[1693810496358,20.0,19.778,19.764,4.94461036]
[1693810500369,91.4641,19.779,19.764,4.94461036]
[1693810500754,20.0,19.778,19.764,4.94461036]
[1693810500953,20.0,19.778,19.765,55.0]
[1693810501159,20.0,19.778,19.766,4.94461036]
[1693810502367,20.0,19.778,19.762,4.94461036]
[1693810502567,20.0,19.778,19.763,55.0]
[1693810502861,20.0,19.778,19.764,4.94461036]
[1693810504568,91.4641,19.779,19.765,55.0]
[1693810504761,91.4641,19.779,19.766,24.94461036]
[1693810505069,128.0,19.79,19.768,4.94461036]
[1693810505070,25.6,19.79,19.768,4.94461036]
[1693810505266,99.0196,19.786,19.77,4.94461036]
[1693810505456,99.0196,19.786,19.771,55.0]
[1693810505657,99.0196,19.786,19.772,4.94461036]
[1693810506058,30.55372263,19.786,19.768,4.94461036]
[1693810506259,25.6,19.78,19.758,4.94461036]
[1693810506469,75.0,19.779,19.758,4.94461036]
[1693810506856,98.3638,19.778,19.758,4.94461036]
[1693810507062,20.0,19.777,19.758,16.65254036]
[1693810507868,25.6,19.77,19.758,4.94461036]
[1693810508059,25.6,19.77,19.741,4.94461036]
[1693810508258,75.0,19.769,19.742,11.71741]
[1693810508469,75.0,19.769,19.743,4.94461036]
[1693810508669,98.3638,19.768,19.743,4.94461036]
[1693810508869,20.0,19.767,19.743,24.94461036]
[1693810509077,20.0,19.767,19.744,11.71623]
[1693810509273,20.0,19.767,19.745,79.94461036]
[1693810509568,20.0,19.767,19.746,11.71504]
[1693810509869,20.0,19.767,19.747,79.94461036]
[1693810510369,20.0,19.767,19.749,4.94461036]
[1693810510569,20.0,19.767,19.751,4.94461036]
[1693810510971,20.0,19.767,19.753,4.94461036]
[1693810511168,20.0,19.767,19.754,55.0]
[1693810511370,20.0,19.767,19.752,55.0]
[1693810511573,20.0,19.767,19.751,55.0]
[1693810511771,20.0,19.767,19.752,4.94461036]
[1693810511974,20.0,19.767,19.753,55.0]
[1693810515378,20.0,19.767,19.754,4.94461036]
[1693810518674,20.0,19.767,19.753,55.0]
[1693810518675,42.66972263,19.767,19.751,4.94461036]
[1693810518875,22.66972263,19.766,19.751,4.94461036]
[1693810519675,25.6,19.76,19.744,4.94461036]
[1693810519876,20.0,19.759,19.741,4.94461036]
[1693810520181,20.0,19.759,19.741,57.33063636]
[1693810520869,20.0,19.759,19.742,55.0]
[1693810521068,22.66972263,19.766,19.743,4.94461036]
[1693810521275,25.6,19.77,19.744,66.71623]
[1693810521476,20.0,19.767,19.745,24.94461036]
[1693810521678,20.0,19.767,19.746,55.0]
[1693810521878,20.0,19.767,19.747,24.94461036]
[1693810522077,20.0,19.767,19.748,55.0]
[1693810522278,20.0,19.767,19.749,4.94461036]
[1693810522471,55.0,19.766,19.749,4.94461036]
[1693810522878,55.0,19.766,19.75,55.0]
[1693810523087,55.0,19.766,19.751,4.94461036]
[1693810523282,55.0,19.766,19.75,55.0]
[1693810524176,55.0,19.766,19.751,2.69718213]
[1693810524383,50.56172263,19.765,19.747,3.65019162]
[1693810524584,55.0,19.764,19.744,11.71623]
[1693810524775,20.0,19.763,19.744,11.71623]
[1693810525176,20.0,19.763,19.745,2.89124725]
[1693810525380,20.0,19.763,19.745,57.89124725]
[1693810525787,20.0,19.763,19.745,55.0]
[1693810528379,20.0,19.763,19.746,2.47688797]
[1693810528585,20.0,19.763,19.746,57.47688797]
[1693810528786,20.0,19.763,19.746,55.0]
[1693810528990,20.0,19.763,19.745,55.0]
[1693810529192,20.0,19.763,19.746,2.92873451]
[1693810529392,98.3638,19.768,19.746,2.92873451]
[1693810529780,20.0,19.767,19.746,22.92873451]
[1693810529993,20.0,19.767,19.747,55.0]
[1693810530196,20.0,19.767,19.748,4.94461036]
[1693810530583,42.66972263,19.767,19.748,4.94461036]
[1693810531277,55.0,19.766,19.748,4.94461036]
[1693810532596,55.0,19.766,19.749,55.0]
[1693810532795,55.0,19.766,19.75,4.94461036]
[1693810534799,42.66972263,19.767,19.75,4.94461036]
[1693810535003,20.0,19.767,19.751,55.0]
[1693810535301,20.0,19.767,19.752,4.94461036]
[1693810535497,98.3638,19.768,19.753,55.0]
[1693810535693,20.0,19.767,19.754,4.94461036]
[1693810535897,22.66972263,19.778,19.755,55.0]
[1693810536094,115.7985,19.777,19.756,24.94461036]
[1693810536295,115.7985,19.777,19.757,55.0]
[1693810536501,115.7985,19.777,19.758,4.94461036]
[1693810536689,95.7985,19.777,19.759,55.0]
[1693810536886,95.7985,19.777,19.76,4.94461036]
[1693810537097,95.7985,19.777,19.761,55.0]
[1693810537297,95.7985,19.777,19.762,4.94461036]
[1693810537603,95.7985,19.777,19.763,55.0]
[1693810537798,95.7985,19.777,19.764,4.94461036]
[1693810540007,118.46822263,19.777,19.757,4.94461036]
[1693810540199,118.46822263,19.777,19.759,20.23763]
[1693810540504,118.46822263,19.777,19.76,59.94461036]
[1693810547804,55.0,19.776,19.76,59.94461036]
[1693810557909,55.0,19.776,19.76,85.54461036]
[1693810563420,55.0,19.776,19.76,4.94461036]
[1693810563627,55.0,19.776,19.757,24.94461036]
[1693810563927,55.0,19.776,19.758,55.0]
[1693810564129,55.0,19.776,19.759,4.94461036]
[1693810571523,118.46822263,19.777,19.76,55.0]
[1693810571834,118.46822263,19.777,19.761,4.94461036]
[1693810572021,118.46822263,19.777,19.762,55.0]
[1693810572221,118.46822263,19.777,19.763,4.94461036]
[1693810573431,118.46822263,19.777,19.758,4.94461036]
[1693810573634,118.46822263,19.777,19.757,20.0]
[1693810573635,118.46822263,19.777,19.76,4.94461036]
[1693810573837,118.46822263,19.777,19.762,4.94461036]
[1693810574016,118.46822263,19.777,19.76,4.94461036]
[1693810574218,118.46822263,19.777,19.762,4.94461036]
[1693810574430,118.46822263,19.777,19.76,4.94461036]
[1693810574629,118.46822263,19.777,19.762,4.94461036]
[1693810574835,118.46822263,19.777,19.76,4.94461036]
[1693810575036,118.46822263,19.777,19.762,4.94461036]
[1693810575338,118.46822263,19.777,19.76,4.94461036]
[1693810575540,118.46822263,19.777,19.761,55.0]
[1693810575833,118.46822263,19.777,19.762,4.94461036]
[1693810579439,25.6,19.77,19.762,4.94461036]
[1693810579742,25.6,19.77,19.758,4.94461036]
[1693810580227,77.66972263,19.776,19.757,4.94461036]
[1693810580727,77.66972263,19.776,19.759,4.94461036]
[1693810598848,25.6,19.77,19.759,4.94461036]
[1693810599052,75.0,19.769,19.754,4.94461036]
[1693810599359,105.56072263,19.769,19.749,4.94461036]
[1693810599557,151.18229161,19.769,19.746,4.94461036]
[1693810599764,151.18229161,19.769,19.746,24.94461036]
[1693810600165,90.1737,19.768,19.746,24.94461036]
[1693810600369,97.66972263,19.767,19.746,49.88922136]
[1693810600846,97.66972263,19.767,19.748,4.94461036]
[1693810601142,97.66972263,19.767,19.75,4.94461036]
[1693810601343,97.66972263,19.767,19.748,4.94461036]
[1693810601559,97.66972263,19.767,19.751,55.0]
[1693810601759,97.66972263,19.767,19.752,4.94461036]
[1693810611172,97.66972263,19.767,19.747,24.94461036]
[1693810611347,97.66972263,19.767,19.747,4.94461036]
[1693810611861,90.41295546,19.767,19.747,50.36816853]
[1693810612466,90.41295546,19.767,19.749,4.94461036]
[1693810612650,90.41295546,19.767,19.751,4.94461036]
[1693810612848,90.41295546,19.767,19.749,4.94461036]
[1693810613050,90.41295546,19.767,19.753,4.94461036]
[1693810613253,90.41295546,19.767,19.749,4.94461036]
[1693810613460,90.41295546,19.767,19.751,4.94461036]
[1693810613668,90.41295546,19.767,19.752,55.0]
[1693810613967,90.41295546,19.767,19.753,4.94461036]
[1693810616852,90.1737,19.768,19.753,4.94461036]
[1693810617060,20.0,19.767,19.754,55.0]
[1693810617261,20.0,19.767,19.755,4.94461036]
[1693810617462,20.0,19.767,19.756,55.0]
[1693810617661,20.0,19.767,19.757,4.94461036]
[1693810618964,20.0,19.767,19.756,55.0]
[1693810620060,20.0,19.767,19.757,4.94461036]
[1693810624969,20.0,19.767,19.758,55.0]
[1693810625678,20.0,19.767,19.759,4.94461036]
[1693810632678,90.1737,19.768,19.759,4.94461036]
[1693810632881,20.0,19.767,19.759,4.94461036]
[1693810633070,90.6902,19.767,19.759,4.94461036]
[1693810642994,90.6902,19.767,19.753,4.94461036]
[1693810643286,90.6902,19.767,19.754,55.0]
[1693810643489,90.6902,19.767,19.755,4.94461036]
[1693810643788,90.6902,19.767,19.757,4.94461036]
[1693810643988,90.6902,19.767,19.755,4.94461036]
[1693810644195,90.6902,19.767,19.757,4.94461036]
[1693810644387,90.6902,19.767,19.755,4.94461036]
[1693810644585,20.0,19.769,19.757,4.94461036]
[1693810644796,20.0,19.769,19.751,4.94461036]
[1693810645479,91.0166,19.768,19.751,4.94461036]
[1693810645681,20.0,19.767,19.751,4.94461036]
[1693810645883,20.0,19.767,19.752,55.0]
[1693810646187,96.6992,19.766,19.753,4.94461036]
[1693810646381,96.6992,19.766,19.755,4.94461036]
[1693810646589,20.0,19.767,19.755,4.94461036]
[1693810646901,96.6992,19.766,19.756,55.0]
[1693810647090,20.0,19.769,19.757,4.94461036]
[1693810647290,96.6992,19.768,19.757,4.94461036]
[1693810647490,20.0,19.767,19.757,4.94461036]
[1693810653291,20.0,19.767,19.751,4.94461036]
[1693810653497,20.0,19.767,19.752,55.0]
[1693810653702,20.0,19.767,19.753,4.94461036]
[1693810653900,20.0,19.767,19.754,55.0]
[1693810654086,20.0,19.767,19.755,4.94461036]
[1693810654391,20.0,19.767,19.756,55.0]
[1693810654598,20.0,19.767,19.757,4.94461036]
[1693810663002,96.6992,19.768,19.758,55.0]
[1693810663200,20.0,19.767,19.759,4.94461036]
[1693810663384,20.0,19.767,19.76,55.0]
[1693810665204,20.0,19.767,19.751,4.94461036]
[1693810665411,20.0,19.767,19.752,55.0]
[1693810665706,20.0,19.767,19.753,11.71089]
[1693810665893,20.0,19.767,19.754,55.0]
[1693810668704,20.0,19.767,19.755,4.94461036]
[1693810668907,20.0,19.767,19.756,55.0]
[1693810669102,20.0,19.767,19.757,4.94461036]
[1693810669302,20.0,19.767,19.758,55.0]
[1693810669502,20.0,19.767,19.759,4.94461036]
[1693810678122,20.0,19.767,19.754,4.94461036]
[1693810679918,20.0,19.767,19.755,55.0]
[1693810680118,20.0,19.767,19.756,4.94461036]
[1693810718870,20.0,19.767,19.757,55.0]
[1693810719063,20.0,19.767,19.758,4.94461036]
[1693810719264,20.0,19.767,19.759,55.0]
[1693810719473,20.0,19.767,19.76,4.94461036]
[1693810719676,20.0,19.767,19.759,55.0]
[1693810720478,20.0,19.767,19.76,4.94461036]
[1693810721776,20.0,19.767,19.759,55.0]
[1693810724280,20.0,19.767,19.76,4.94461036]
[1693810724466,20.0,19.767,19.759,55.0]
[1693810732584,20.0,19.767,19.76,4.94461036]
[1693810754203,20.0,19.767,19.759,55.0]
[1693810754401,20.0,19.767,19.76,4.94461036]
[1693810754701,20.0,19.767,19.759,55.0]
[1693810758004,20.0,19.767,19.76,4.94461036]
[1693810760816,20.0,19.767,19.759,55.0]
[1693810766313,20.0,19.767,19.754,4.94461036]
[1693810767516,20.0,19.767,19.751,4.94461036]
[1693810769521,20.0,19.767,19.752,55.0]
[1693810769819,20.0,19.767,19.753,4.94461036]
[1693810774007,20.0,19.767,19.753,30.36816853]
[1693810779920,20.0,19.767,19.753,4.94461036]
[1693810780226,34.854251,19.767,19.753,4.94461036]
[1693810782522,34.854251,19.767,19.751,4.94461036]
[1693810782523,55.0,19.766,19.751,4.94461036]
[1693810787316,55.0,19.766,19.749,4.94461036]
[1693810790027,25.6,19.76,19.749,4.94461036]
[1693810790218,20.0,19.759,19.746,4.94461036]
[1693810790419,20.0,19.759,19.74,25.6]
[1693810790621,20.0,19.759,19.74,80.6]
[1693810790814,93.7828,19.758,19.74,80.6]
[1693810791227,20.0,19.757,19.74,80.6]
[1693810791429,20.0,19.757,19.741,55.0]
[1693810792229,20.0,19.757,19.74,65.98866395]
[1693810793919,20.0,19.757,19.741,55.0]
[1693810800644,20.0,19.757,19.74,25.6]
[1693810800830,20.0,19.757,19.739,41.4663291]
[1693810800831,55.0,19.756,19.739,41.4663291]
[1693810801030,55.0,19.756,19.737,80.66584779]
[1693810803540,55.0,19.756,19.738,55.0]
[1693810805038,55.0,19.756,19.739,2.61038658]
[1693810805544,20.0,19.757,19.739,2.61038658]
[1693810805947,20.0,19.757,19.74,25.6]
[1693810806148,20.0,19.757,19.741,57.85360851]
[1693810810148,20.0,19.757,19.741,83.27716668]
[1693810810555,20.0,19.757,19.741,166.55433268]
[1693810811954,20.0,19.757,19.742,11.71741]
[1693810812153,20.0,19.757,19.743,58.99101072]
[1693810815041,20.0,19.757,19.743,3.99101072]
[1693810815238,20.0,19.757,19.742,11.71741]
[1693810815444,25.6,19.75,19.731,4.94461036]
[1693810815650,20.0,19.749,19.731,45.11878736]
[1693810815837,20.0,19.749,19.731,4.94461036]
[1693810815838,167.412,19.749,19.731,4.94461036]
[1693810816043,167.412,19.749,19.727,24.94461036]
[1693810816554,167.412,19.749,19.727,80.18690036]
[1693810816937,167.412,19.749,19.727,60.18690036]
[1693810819246,167.412,19.749,19.728,55.0]
[1693810819548,167.412,19.749,19.729,4.94461036]
[1693810819749,167.412,19.749,19.731,4.94461036]
[1693810819951,167.412,19.749,19.732,55.0]
[1693810820150,167.412,19.749,19.733,4.94461036]
[1693810821160,175.311,19.749,19.733,4.94461036]
[1693810821360,243.60229161,19.749,19.733,4.94461036]
[1693810821551,22.66972263,19.748,19.728,4.94461036]
[1693810821752,75.0,19.747,19.724,24.94461036]
[1693810822664,75.0,19.747,19.724,40.45094588]
[1693810822863,75.0,19.747,19.725,55.0]
[1693810823163,75.0,19.747,19.726,24.94461036]
[1693810823464,75.0,19.747,19.728,4.94461036]
[1693810823762,75.0,19.747,19.73,4.94461036]
[1693810824062,75.0,19.747,19.727,55.0]
[1693810824063,75.0,19.747,19.728,4.94461036]
[1693810824276,75.0,19.747,19.729,55.0]
[1693810824561,75.0,19.747,19.73,4.94461036]
[1693810825264,75.0,19.747,19.732,4.94461036]
[1693810825465,75.0,19.747,19.73,4.94461036]
[1693810825765,75.0,19.747,19.732,4.94461036]
[1693810826166,75.0,19.747,19.73,4.94461036]
[1693810826352,75.0,19.747,19.731,55.0]
[1693810826661,75.0,19.747,19.732,4.94461036]
[1693810826861,75.0,19.747,19.726,4.94461036]
[1693810827068,75.0,19.747,19.728,4.94461036]
[1693810827261,75.0,19.747,19.73,4.94461036]
[1693810827453,75.0,19.747,19.731,55.0]
[1693810827653,75.0,19.747,19.732,4.94461036]
[1693810828668,75.0,19.747,19.731,55.0]
[1693810829056,75.0,19.747,19.732,4.94461036]
[1693810829258,20.0,19.747,19.733,55.0]
[1693810829459,20.0,19.747,19.732,4.94461036]
[1693810829658,20.0,19.747,19.733,55.0]
[1693810829859,20.0,19.747,19.732,4.94461036]
[1693810830073,20.0,19.747,19.733,55.0]
[1693810830777,25.6,19.74,19.726,4.94461036]
[1693810830977,25.6,19.74,19.727,55.0]
[1693810831173,25.6,19.74,19.728,4.94461036]
[1693810831380,20.0,19.747,19.729,55.0]
[1693810831580,20.0,19.747,19.73,4.94461036]
[1693810831878,20.0,19.747,19.731,55.0]
[1693810832067,20.0,19.747,19.732,4.94461036]
[1693810836884,20.0,19.747,19.733,55.0]
[1693810850391,20.0,19.747,19.734,4.94461036]
[1693810859092,20.0,19.747,19.733,55.0]
[1693810860589,20.0,19.747,19.734,4.94461036]
[1693810867906,22.66972263,19.748,19.734,4.94461036]
[1693810868103,20.0,19.747,19.734,4.94461036]
[1693810875007,20.0,19.747,19.728,4.94461036]
[1693810875206,20.0,19.747,19.729,55.0]
[1693810875407,25.6,19.74,19.73,4.94461036]
[1693810875623,25.6,19.74,19.726,4.94461036]
[1693810876713,25.6,19.74,19.727,55.0]
[1693810877015,25.6,19.74,19.728,4.94461036]
[1693810877213,25.6,19.74,19.73,4.94461036]
[1693810877512,25.6,19.74,19.728,4.94461036]
[1693810877716,25.6,19.74,19.73,4.94461036]
[1693810877926,25.6,19.74,19.728,4.94461036]
[1693810878121,25.6,19.74,19.73,4.94461036]
[1693810878630,25.6,19.74,19.728,4.94461036]
[1693810878804,25.6,19.74,19.73,4.94461036]
[1693810879006,25.6,19.74,19.728,4.94461036]
[1693810879206,25.6,19.74,19.73,4.94461036]
[1693810879407,25.6,19.74,19.728,4.94461036]
[1693810879626,25.6,19.74,19.729,55.0]
[1693810879814,25.6,19.74,19.73,4.94461036]
[1693810885515,25.6,19.74,19.726,4.94461036]
[1693810886723,25.6,19.74,19.728,4.94461036]
[1693810887723,94.9891,19.739,19.728,4.94461036]
[1693810888318,25.6,19.74,19.728,4.94461036]
[1693810890531,95.5128,19.739,19.728,4.94461036]
[1693810898337,95.5128,19.739,19.726,4.94461036]
[1693810898737,95.5128,19.739,19.722,4.94461036]
[1693810898937,20.0,19.738,19.722,4.94461036]
[1693810899646,20.0,19.738,19.723,55.0]
[1693810899828,20.0,19.738,19.724,4.94461036]
[1693810900028,20.0,19.738,19.725,55.0]
[1693810906044,20.0,19.738,19.721,20.275774]
[1693810906344,55.0,19.737,19.722,4.21029661]
[1693810906546,42.66972263,19.738,19.717,24.94461036]
[1693810906737,42.66972263,19.738,19.72,25.6]
[1693810906935,42.66972263,19.738,19.721,4.94461036]
[1693810907439,42.66972263,19.738,19.723,4.94461036]
[1693810907634,42.66972263,19.738,19.725,4.94461036]
[1693810907834,42.66972263,19.738,19.723,4.94461036]
[1693810908035,42.66972263,19.738,19.725,4.94461036]
[1693810908239,42.66972263,19.738,19.723,4.94461036]
[1693810908436,42.66972263,19.738,19.725,4.94461036]
[1693810910046,55.0,19.737,19.719,4.94461036]
[1693810910346,55.0,19.737,19.72,25.6]
[1693810910535,55.0,19.737,19.721,4.94461036]
[1693810911143,55.0,19.737,19.722,55.0]
[1693810911339,55.0,19.737,19.723,4.94461036]
[1693810914362,42.66972263,19.738,19.723,4.94461036]
[1693810914546,42.66972263,19.738,19.724,55.0]
[1693810914750,42.66972263,19.738,19.725,4.94461036]
[1693810922852,20.0,19.738,19.726,55.0]
[1693810923164,20.0,19.738,19.727,4.94461036]
[1693810923366,20.0,19.738,19.726,55.0]
[1693810923747,20.0,19.738,19.727,4.94461036]
[1693810924264,20.0,19.738,19.726,55.0]
[1693810926351,20.0,19.738,19.727,4.94461036]
[1693810926761,20.0,19.738,19.726,55.0]
[1693810933164,20.0,19.738,19.727,4.94461036]
[1693810933867,20.0,19.738,19.728,55.0]
[1693810935667,20.0,19.738,19.729,2.58055611]
[1693810935863,20.0,19.738,19.728,55.0]
[1693810936967,95.5128,19.739,19.728,55.0]
[1693810937168,20.0,19.738,19.729,3.02471155]
[1693810938370,20.0,19.738,19.725,4.94461036]
[1693810938569,20.0,19.738,19.722,4.94461036]
[1693810938961,20.0,19.738,19.721,45.62175236]
[1693810939563,20.0,19.738,19.722,55.0]
[1693810939863,20.0,19.738,19.723,4.94461036]
[1693810940062,20.0,19.738,19.724,55.0]
[1693810940262,20.0,19.738,19.725,4.94461036]
[1693810940472,20.0,19.738,19.726,55.0]
[1693810940662,20.0,19.738,19.727,4.94461036]
[1693810940862,20.0,19.738,19.728,55.0]
[1693810941063,20.0,19.738,19.729,4.94461036]
[1693810942581,20.0,19.738,19.722,4.94461036]
[1693810942780,20.0,19.738,19.723,55.0]
[1693810942981,20.0,19.738,19.724,4.94461036]
[1693810943281,20.0,19.738,19.725,55.0]
[1693810943476,20.0,19.738,19.726,4.94461036]
[1693810943677,20.0,19.738,19.727,55.0]
[1693810943881,20.0,19.738,19.728,4.94461036]
[1693810952073,20.0,19.738,19.722,4.94461036]
[1693810952267,20.0,19.738,19.723,55.0]